Cogmind - Beta 13 X1 @@@ ROGUE MODE // 2023.10.04 @ 18:58:40 Player: DuckBoy Result: Core destroyed Performance ------------- Evolutions (3) 1500 Regions Visited (9) 1800 Robots Destroyed (134) 670 Value Destroyed (5466) 5466 Prototype IDs (24) 480 Alien Tech Used (0) 0 Bonus (8620) 8620 TOTAL SCORE: 18536 Bonus ------- Triggered High Security 500 High Alert Combat Kills 1945 Follower Combat Kills 3576 Entered Garrisons 400 Used RIF Installer 2000 Aligned with FarCom 300 Friendly Fire -101 Cogmind --------- Core Integrity 0/700 Matter 192/300 Energy 290/290 System Corruption 1% Temperature Cool (0) Movement Core (300) Ox5 Location -7/Factory Parts ------- > --- POWER (2) -------- Backup Power III Reinforced Deuterium Engine > --- PROPULSION (2) --- (None) > --- UTILITY (7) ------ Hacking Suite Hacking Suite Hacking Suite > --- WEAPON (2) ------- (None) > --- INVENTORY (5) ---- Advanced System Restoration Module Advanced System Restoration Module Peak State ------------ > --- POWER ------------ Light Nuclear Core > --- PROPULSION ------- Heavy Treads > --- UTILITY ---------- High-capacity Storage Unit Advanced Targeting Computer Hardened Light Armor Plating Hardlight Generator Hacking Suite System Shield > --- WEAPON ----------- AWS/Gauss > --- INVENTORY -------- Deuterium Engine Light Angular Momentum Engine Wheel Wheel Advanced Cooling System Improved Transmission Jammer Hacking Suite Advanced System Restoration Module Advanced Drone Bay Tesla Rifle Advanced Plasma Cannon Shock Bomb Launcher Missile Launcher Smartbomb Launcher Remote Datajack Axe [Rating: 54] Favorites ----------- Power Light Nuclear Core Engine Reinforced Deuterium Engine Power Core Light Nuclear Core Propulsion Compact Wheel Treads Armored Treads Wheel Compact Wheel Utility Hacking Suite Device Hardlight Generator Storage High-capacity Storage Unit Processor Targeting Computer Hackware Hacking Suite Protection Hardened Light Armor Plating Weapon Assault Rifle Energy Gun Backup Laser III Energy Cannon Advanced Plasma Cannon Ballistic Gun Assault Rifle Launcher Smartbomb Launcher Slashing Weapon Axe Build | -11 -10 -10 -10 -9 -8 -8 -8 -8 -7 ------- Run | Jun Mat Min Exi Min Mat Gar Mat Gar Fac Slots Evolved 6 | . . . . . 4 . . . 2 Power 1 | . . . . . . . . . 1 Propulsion . | . . . . . . . . . . Utility 5 | . . . . . 4 . . . 1 Weapon . | . . . . . . . . . . Parts Attached 94 | 6 3 1 2 . 11 10 5 17 39 Power 8 | 1 . . . . 1 2 . 1 3 Engine 5 | 1 . . . . . 1 . 1 2 Core 3 | . . . . . 1 1 . . 1 Reactor . | . . . . . . . . . . Propulsion 10 | 2 . . . . . . . 3 5 Treads 5 | . . . . . . . . 1 4 Leg . | . . . . . . . . . . Wheel 5 | 2 . . . . . . . 2 1 Hover . | . . . . . . . . . . Flight . | . . . . . . . . . . Utility 41 | 1 1 1 . . 4 1 4 4 25 Device 10 | . . . . . 1 . 1 3 5 Storage 2 | 1 1 . . . . . . . . Processor 2 | . . 1 . . . . 1 . . Hackware 20 | . . . . . 2 . . 1 17 Protection 7 | . . . . . 1 1 2 . 3 Artifact . | . . . . . . . . . . Weapon 35 | 2 2 . 2 . 6 7 1 9 6 Energy Gun 2 | . . . . . 1 1 . . . Energy Cannon 5 | . . . . . 1 1 . . 3 Ballistic Gun 9 | 2 1 . 2 . 1 . 1 2 . Ballistic Cannon . | . . . . . . . . . . Launcher 12 | . . . . . 2 3 . 4 3 Special Weapon . | . . . . . . . . . . Impact Weapon . | . . . . . . . . . . Slashing Weapon 7 | . 1 . . . 1 2 . 3 . Piercing Weapon . | . . . . . . . . . . Special Melee Weapon . | . . . . . . . . . . Unidentified Prototypes 1 | . . . . . 1 . . . . Parts Lost 23 | . . . . . . 3 1 3 16 Power 4 | . . . . . . 1 . . 3 Propulsion 6 | . . . . . . . . 1 5 Utility 9 | . . . . . . . 1 2 6 Weapon 4 | . . . . . . 2 . . 2 Highest Loss Streak 6 | . . . . . . 3 1 2 6 To Critical Strikes . | . . . . . . . . . . Average Slot Usage (%) 84 | . 85 92 100 100 97 97 88 80 76 Engine 7 | . 14 14 14 14 1 4 . . 11 Core 3 | . . . . . 7 4 9 8 1 Treads 4 | . . . . . . . . 5 9 Wheel 11 | . 28 28 28 28 18 18 18 7 3 Device 2 | . . . . . 8 . . 4 3 Storage 8 | . 14 14 14 14 9 9 9 9 6 Processor 5 | . . 7 14 14 9 9 9 11 . Hackware 19 | . . . . . 17 18 18 20 26 Protection 7 | . . . . . 7 17 14 5 4 Energy Gun 1 | . . . . . . . . . 2 Energy Cannon 1 | . . . . . 2 . . . 2 Ballistic Gun 5 | . 26 28 28 28 11 . 8 3 . Launcher 2 | . . . . . 2 8 . 1 1 Slashing Weapon 1 | . 1 . . . . 5 . 2 . Naked Turns . | . . . . . . . . . . Heaviest Build 91 | 14 49 49 49 49 69 74 74 65 91 Greatest Support 70 | 32 32 32 32 32 32 32 32 70 70 Greatest Overweight (x) 5 | . 1 1 1 1 2 2 2 4 5 Average Overweight (x) 1 | . . 1 1 1 1 1 1 . 1 Largest Inventory Capacity 20 | 8 20 20 20 20 20 20 20 20 20 Average Capacity 19 | 7 12 20 20 20 20 20 20 20 19 Most Carried 20 | 4 9 13 17 16 20 20 20 20 20 Average Carried 15 | 1 7 11 13 15 18 19 19 18 11 Final Capacity 20 | 8 20 20 20 20 20 20 20 20 5 Final Carried 20 | 4 9 13 15 16 20 20 20 20 2 Class Distribution -------------------- 67% | Hacker-Mutant 19% | Commander-Mutant 12% | Mutant Dominant Class ---------------- Mutant | -10/Materials Mutant | -10/Mines Mutant | -10/Exiles Mutant | -9/Mines Hacker-Mutant | -8/Materials Hacker-Mutant | -8/Garrison Hacker-Mutant | -8/Materials Hacker-Mutant | -8/Garrison Hacker-Mutant | -7/Factory Resources | -11 -10 -10 -10 -9 -8 -8 -8 -8 -7 ----------- Run | Jun Mat Min Exi Min Mat Gar Mat Gar Fac Matter Collected 2336 | 193 331 34 . 20 186 274 192 336 770 Remotely . | . . . . . . . . . . Salvage Created 4158 | . 431 13 . . 479 388 419 1101 1327 Parts 216 | . 17 3 . . 22 27 30 45 72 Haulers Intercepted 2 | . 1 . . . . . . . 1 Recyclers Shooed 1 | . 1 . . . . . . . . Parts Field Recycled . | . . . . . . . . . . Retrieved Matter . | . . . . . . . . . . Parts Self-Destructed . | . . . . . . . . . . Prevented . | . . . . . . . . . . Kills | -11 -10 -10 -10 -9 -8 -8 -8 -8 -7 ------- Run | Jun Mat Min Exi Min Mat Gar Mat Gar Fac Combat Hostiles Destroyed 108 | . 5 . . . 8 19 5 30 41 Melee 1 | . . . . . . . . 1 . Guns 28 | . 5 . . . . . 5 18 . Cannons 10 | . . . . . 5 . . . 5 AOE 68 | . . . . . 3 19 . 11 35 Classes Destroyed 19 | . 6 . . . 3 3 2 1 4 Worker 4 | . 1 1 . . 2 . . . . Builder 1 | . . . . . . . 1 . . Hauler 2 | . 1 . . . . . . . 1 Recycler 1 | . 1 . . . . . . . . Mechanic 5 | . . . . . . . . . 5 Operator 4 | . 1 . . . . . 2 . 1 Watcher 9 | . 1 . . . 1 . 4 . 3 Swarmer 19 | . . . . . 1 7 . 8 3 Cutter 3 | . . . . . . 3 . . . Grunt 47 | . 5 . . . 4 6 1 16 15 Brawler 4 | . . . . . . 1 . 1 2 Duelist 4 | . . . . . 1 1 1 . 1 Protector 2 | . . . . . . . . . 2 Sentry 6 | . . . . . 2 . 1 2 1 Specialist 3 | . . . . . . . . . 3 Hunter 10 | . . . . . . . 2 . 8 Programmer 8 | . . . . . . . . 3 5 Heavy 1 | . . . . . . . . . 1 Behemoth 1 | . . . . . . 1 . . . Best Kill Streak 16 | . 4 1 . . 4 9 3 7 16 Combat Bots Only 14 | . 4 . . . 2 9 2 7 14 Max Kills in Single Turn 4 | . 1 1 . . 2 4 2 3 4 Gunslinging . | . . . . . . . . . . Exploded 4 | . . . . . 1 4 . 3 4 Melee 1 | . . . . . . . . 1 . Uniques/NPCs Destroyed . | . . . . . . . . . . Combat | -11 -10 -10 -10 -9 -8 -8 -8 -8 -7 -------- Run | Jun Mat Min Exi Min Mat Gar Mat Gar Fac Damage Taken 4481 | . 183 . . . 239 315 63 444 3237 Core 885 | . 56 . . . 38 15 12 46 718 Absorbed by Shields 206 | . . . . . 84 28 . 32 62 Reduced by Siege Mode 93 | . . . . . . . . 7 86 Ignored by Resistances 48 | . . . . . 28 5 15 . . Regen/Repaired (Parts) 114 | . . . . . . . . . 114 Core Remaining (%) 85 | 100 . . . 77 . . . 79 . Volleys Fired 201 | . 42 1 . . 23 26 . 14 95 Largest 2 | . 2 2 . . 2 2 . 1 1 Hottest 98 | . 40 40 . . 80 80 . 46 98 Shots Fired 364 | . 84 2 . . 42 31 35 75 95 Gun 204 | . 84 2 . . 20 2 35 61 . Cannon 83 | . . . . . 18 2 . . 63 Launcher 77 | . . . . . 4 27 . 14 32 Special . | . . . . . . . . . . Kinetic 204 | . 84 2 . . 20 2 35 61 . Thermal 83 | . . . . . 18 2 . . 63 Explosive 67 | . . . . . 1 20 . 14 32 Electromagnetic 10 | . . . . . 3 7 . . . Robot Hit Streak 17 | . 8 8 . . 9 7 17 16 12 Robot Miss Streak 5 | . 5 . . . 2 3 2 1 3 Penetration Max . | . . . . . . . . . . Secondary Targets 1 | . 1 . . . . . . . . Max Gunslinging Chain 1 | . 1 . . . . . . . . Autonomous 96 | . . . . . . . 35 61 . Shots Hit Robots 218 | . 51 1 . . 25 10 28 64 39 Core Hits 243 | . 16 1 . . 19 37 14 45 111 Critical Kills 3 | . . . . . . . 3 . . Critical Parts Destroyed 1 | . . . . . . . 1 . . Critical Strikes 5 | . . . . . . . 4 1 . Destroy 4 | . . . . . . . 4 . . Sever 1 | . . . . . . . . 1 . Melee Attacks 33 | . 6 . . . 1 14 . 12 . Impact . | . . . . . . . . . . Slashing 33 | . 6 . . . 1 14 . 12 . Piercing . | . . . . . . . . . . Sneak Attacks 2 | . 2 . . . . . . . . Combat Hostiles . | . . . . . . . . . . Follow-up Attacks . | . . . . . . . . . . Damage Inflicted 17666 | . 782 11 . . 802 2057 761 4434 8819 Guns 3528 | . 650 11 . . 163 13 761 1930 . Cannons 1507 | . . . . . 226 . . . 1281 Explosions 12034 | . . . . . 393 2044 . 2149 7448 Melee 483 | . 132 . . . . . . 351 . Ramming 114 | . . . . . 20 . . 4 90 Kinetic 3528 | . 650 11 . . 163 13 761 1930 . Thermal 1660 | . . . . . 268 111 . . 1281 Explosive 11430 | . . . . . 105 1728 . 2149 7448 Electromagnetic 451 | . . . . . 246 205 . . . Impact . | . . . . . . . . . . Slashing 483 | . 132 . . . . . . 351 . Piercing . | . . . . . . . . . . Highest Corruption 2 | . . . . . . . . 2 1 Average Corruption 1 | . . . . . . . . 1 1 Corruption Purged 1 | . . . . . . . . . 1 Corruption Blocked . | . . . . . . . . . . Effects 23 | . . . . . . . . 9 14 Message Errors 8 | . . . . . . . . 2 6 Matter Fused 8 | . . . . . . . . 4 4 Heat Flow Errors 1 | . . . . . . . . 1 . Energy Discharges 2 | . . . . . . . . . 2 Data Loss (minor) 2 | . . . . . . . . 1 1 Data Loss (major) 1 | . . . . . . . . 1 . Alerts 1 | . . . . . . . . . 1 Overload Shots . | . . . . . . . . . . Overflow Damage 516 | . 22 . . . 5 6 . 191 292 Projectiles 75 | . . . . . . . . . 75 Explosions 403 | . . . . . . 6 . 180 217 Melee 38 | . 22 . . . 5 . . 11 . Knockbacks 2 | . . . . . 1 . . . 1 Impact 2 | . . . . . 1 . . . 1 Kinetic . | . . . . . . . . . . Secondary . | . . . . . . . . . . Self-Inflicted Damage 201 | . . . . . 10 77 . 114 . Shots 6 | . . . . . . 3 . 3 . Rammed 18 | . . . . . 1 . . 2 15 Targets Rammed 18 | . . . . . 1 . . 2 15 Kicked . | . . . . . . . . . . Crushed . | . . . . . . . . . . Highest Temperature 494 | . 4 . . . 217 126 . 83 494 Average Temperature 86 | . 2 . . . 72 34 . 24 111 Received Heat Transfer 479 | . 102 . . . 75 54 . 120 128 Effects 4 | . . . . . . . . . 4 Shutdowns 1 | . . . . . . . . . 1 Damage (major) 3 | . . . . . . . . . 3 Siege Activations 3 | . . . . . . . . 1 2 Total Turns 74 | . . . . . . . . 14 60 Longest Duration 31 | . . . . . . . . 14 31 Robots Corrupted . | . . . . . . . . . . Combat Hostiles . | . . . . . . . . . . Parts Fried . | . . . . . . . . . . Impact Corruptions 1 | . . . . . 1 . . . . Robots Melted 1 | . . . . . . . . . 1 Combat Hostiles 1 | . . . . . . . . . 1 Parts Melted 11 | . . . . . 3 . . . 8 Heat Transferred 2531 | . . . . . 531 100 . . 1900 Parts Sabotaged . | . . . . . . . . . . Parts Stolen . | . . . . . . . . . . Parts Stripped . | . . . . . . . . . . Power Chain Reactions 3 | . . . . . 1 2 . . . Missiles Intercepted . | . . . . . . . . . . Alert | -11 -10 -10 -10 -9 -8 -8 -8 -8 -7 ------- Run | Jun Mat Min Exi Min Mat Gar Mat Gar Fac Peak Influence 4796 | . 211 9 . 81 285 1009 541 881 4796 Initial 491 | . . 4 . . 31 185 491 37 449 Average 647 | . 105 7 . 21 113 671 231 503 1030 Maximum Alert Level 5 | . 1 . . . 1 3 2 3 5 Low Security (%) 28 | 100 96 100 . 100 83 6 51 14 10 Level 1 17 | . 3 . . . 16 8 28 15 21 Level 2 22 | . . . . . . 27 19 38 25 Level 3 16 | . . . . . . 57 . 32 7 Level 4 8 | . . . . . . . . . 21 Level 5 . | . . . . . . . . . . High Security 6 | . . . . . . . . . 14 Max Security . | . . . . . . . . . . Sterilizations 1 | . . . . . . . . . 1 Squads Dispatched 37 | . 1 . . . . . 2 . 34 Investigation 4 | . . . . . . . 1 . 3 Extermination 4 | . . . . . . . . . 4 Reinforcement 10 | . 1 . . . . . 1 . 8 Assault 19 | . . . . . . . . . 19 Garrison . | . . . . . . . . . . Intercept . | . . . . . . . . . . Searches Triggered . | . . . . . . . . . . Construction Impeded 3 | . . . . . . . . . 3 Haulers Reinforced . | . . . . . . . . . . Active Scanning Responses . | . . . . . . . . . . Cargo Convoy Interrupts 1 | . . . . . . . . . 1 Stealth | -11 -10 -10 -10 -9 -8 -8 -8 -8 -7 --------- Run | Jun Mat Min Exi Min Mat Gar Mat Gar Fac Distress Signals 13 | . . . . . 5 . . . 8 Communications Jammed 9 | . . . . . . . . . 9 Distress Signals 9 | . . . . . . . . . 9 Times Spotted 200 | . 20 . . . 20 16 10 20 114 Peak Tracking Total 18 | . 5 . . . 7 5 2 6 18 Tactical Retreats 5 | . . . . . 2 1 . 1 1 Traps | -11 -10 -10 -10 -9 -8 -8 -8 -8 -7 ------- Run | Jun Mat Min Exi Min Mat Gar Mat Gar Fac Traps Triggered 18 | . . . . . . 7 . 9 2 Indirectly 2 | . . . . . . 2 . . . Trap Hack Attempts . | . . . . . . . . . . Triggered . | . . . . . . . . . . Disarmed . | . . . . . . . . . . Reprogrammed 3 | . . . . . . . 3 . . Reused . | . . . . . . . . . . Traps Extracted . | . . . . . . . . . . Installed . | . . . . . . . . . . Triggered 1 | . . . . . . . . . 1 Machines | -11 -10 -10 -10 -9 -8 -8 -8 -8 -7 ---------- Run | Jun Mat Min Exi Min Mat Gar Mat Gar Fac Machines Disabled 29 | . . . . . . 3 1 . 25 Max in Single Turn 5 | . . . . . . 1 1 . 5 Garrison Access 1 | . . . . . . . . . 1 Garrison Relay 1 | . . . . . . 1 . . . Machines Repaired . | . . . . . . . . . . Machines Sabotaged . | . . . . . . . . . . Overloaded Fab Kills . | . . . . . . . . . . Hacking | -11 -10 -10 -10 -9 -8 -8 -8 -8 -7 --------- Run | Jun Mat Min Exi Min Mat Gar Mat Gar Fac Machines Accessed 36 | . 3 . 2 . 5 4 9 3 10 Terminals 26 | . 3 . . . 4 4 7 3 5 Fabricators 2 | . . . . . . . . . 2 Repair Stations 1 | . . . . . . . . . 1 Recycling Units 1 | . . . . . . . . . 1 Scanalyzers 1 | . . . . . . . 1 . . Garrison Access 3 | . . . . . 1 . 1 . 1 Total Hacks 147 | . 5 . 2 . 17 6 44 5 68 Successful 104 | . 1 . 2 . 8 3 27 2 61 Failed 43 | . 4 . . . 9 3 17 3 7 Catastrophic 7 | . 2 . . . . 1 1 1 2 Database Lockouts . | . . . . . . . . . . Manual 72 | . 2 . 1 . 16 1 28 4 20 Terminals 85 | . 5 . . . 16 6 32 5 21 Fabricators 39 | . . . . . . . . . 39 Repair Stations 3 | . . . . . . . . . 3 Recycling Units 4 | . . . . . . . . . 4 Scanalyzers 10 | . . . . . . . 10 . . Garrison Access 4 | . . . . . 1 . 2 . 1 Terminal Hacks 30 | . . . 2 . 2 3 11 2 10 Record 1 | . . . 1 . . . . . . Part Schematic 2 | . . . . . 1 . . . 1 Robot Schematic 6 | . . . . . . . 2 . 4 Robot Analysis 1 | . . . . . . . . . 1 Open Door 1 | . . . . . . 1 . . . Emergency Access Points 1 | . . . . . . 1 . . . Terminal Index 3 | . . . . . 1 . 1 . 1 Unreport Threat 7 | . . . . . . . 3 1 3 Reprogram Traps 2 | . . . . . . . 2 . . Recall Reinforcements 1 | . . . . . . . 1 . . Hauler Manifests 1 | . . . . . . . 1 . . Registered Prototypes 1 | . . . . . . . 1 . . Garrison Registry 2 | . . . . . . 1 . 1 . Derelict Proto ID Bank 1 | . . . 1 . . . . . . Fabricator Hacks 36 | . . . . . . . . . 36 Load Schematic 18 | . . . . . . . . . 18 Build 18 | . . . . . . . . . 18 Repair Station Hacks 2 | . . . . . . . . . 2 Scan Component 1 | . . . . . . . . . 1 Repair 1 | . . . . . . . . . 1 Recycling Unit Hacks . | . . . . . . . . . . Scanalyzer 9 | . . . . . . . 9 . . Insert Component 3 | . . . . . . . 3 . . Analyze 6 | . . . . . . . 6 . . Garrison Access Hacks 3 | . . . . . 1 . 1 . 1 Unlock Access 2 | . . . . . 1 . 1 . . Seal Access 1 | . . . . . . . . . 1 Unauthorized Hacks 24 | . 1 . . . 5 . 6 . 12 Terminals 15 | . 1 . . . 5 . 5 . 4 Assimilate 1 | . . . . . . . 1 . . Botnet 8 | . . . . . 3 . 3 . 2 Operators 6 | . 1 . . . 2 . 1 . 2 Fabricators 3 | . . . . . . . . . 3 Prioritize 1 | . . . . . . . . . 1 Liberate 2 | . . . . . . . . . 2 Repair Stations 1 | . . . . . . . . . 1 Mechanics 1 | . . . . . . . . . 1 Recycling Units 4 | . . . . . . . . . 4 Monitor 1 | . . . . . . . . . 1 Reject 1 | . . . . . . . . . 1 Recyclers 1 | . . . . . . . . . 1 Mask 1 | . . . . . . . . . 1 Scanalyzers . | . . . . . . . . . . Garrison Access 1 | . . . . . . . 1 . . Eject 1 | . . . . . . . 1 . . Data Cores Recovered 2 | . . . . . . . 1 . 1 Used 1 | . . . . . . . . . 1 Hacking Detections 24 | . 2 . . . 4 3 6 2 7 Full Trace Events 5 | . 1 . . . . 1 . 1 2 Feedback Events . | . . . . . . . . . . Feedback Blocked . | . . . . . . . . . . Robot Schematics Acquired 6 | . . . . . . . 2 . 4 Robots Built 28 | . . . . . . . . . 28 Authchips 16 | . . . . . . . . . 16 Time 412 | . . . . . . . . . 412 Total Robot Build Rating 110 | . . . . . . . . . 110 Part Schematics Acquired 5 | . . . . . 1 . 3 . 1 Parts Built 2 | . . . . . . . . . 2 Authchips . | . . . . . . . . . . Time 53 | . . . . . . . . . 53 Total Part Build Rating 12 | . . . . . . . . . 12 Parts Repaired 1 | . . . . . . . . . 1 Time 56 | . . . . . . . . . 56 Parts Recycled . | . . . . . . . . . . Recycled Matter . | . . . . . . . . . . Retrieved Matter . | . . . . . . . . . . Retrieved Components . | . . . . . . . . . . Parts Scanalyzed 3 | . . . . . . . 3 . . Part Schematics Acquired 3 | . . . . . . . 3 . . Parts Damaged . | . . . . . . . . . . Bothacking | -11 -10 -10 -10 -9 -8 -8 -8 -8 -7 ------------ Run | Jun Mat Min Exi Min Mat Gar Mat Gar Fac Used RIF Installer 4 | . . . . . . 2 . 2 . Command Fork 1 | . . . . . . 1 . . . Robot Detection 1 | . . . . . . . . 1 . Patrol Navigation 1 | . . . . . . . . 1 . Robots Hacked . | . . . . . . . . . . Non-combat . | . . . . . . . . . . Combat . | . . . . . . . . . . Robot Hacks Applied . | . . . . . . . . . . Relay Couplers Released 7 | . . . . . . 4 3 . . Ejected 3 | . . . . . . . 3 . . Machine Destruction 4 | . . . . . . 4 . . . Fabnet Peak Effective % . | . . . . . . . . . . Robots Rewired . | . . . . . . . . . . Allies Hacked 11 | . . . . . . . . . 11 Hacks Repelled 1 | . . . . . . . . . 1 Allies | -11 -10 -10 -10 -9 -8 -8 -8 -8 -7 -------- Run | Jun Mat Min Exi Min Mat Gar Mat Gar Fac Total Allies 49 | . . 1 . 3 . 2 . . 43 Largest Group 29 | . . 1 1 3 3 2 . . 29 Highest-Rated Group 854 | . . 31 31 40 40 62 . . 854 Highest-Rated Ally 40 | . . 31 31 16 16 31 . . 40 Total Orders 72 | . . . . . . . 2 . 70 STAY 60 | . . . . . . . . . 60 FOLLOW 6 | . . . . . . . . . 6 AID 4 | . . . . . . . . . 4 EXPLORE 1 | . . . . . . . 1 . . RETURN 1 | . . . . . . . 1 . . Ally Attacks 502 | . . . . 8 28 16 . . 450 Total Damage 14683 | . . . . 90 274 214 . . 14105 Kills 117 | . . . . 3 6 3 . . 105 Allies Corrupted . | . . . . . . . . . . Allies Melted . | . . . . . . . . . . Intel | -11 -10 -10 -10 -9 -8 -8 -8 -8 -7 ------- Run | Jun Mat Min Exi Min Mat Gar Mat Gar Fac Robot Analysis Total 1 | . . . . . . . . . 1 Derelict Logs Recovered 3 | . . 1 . 2 . . . . . Drone Launches 2 | . . . . . . . 2 . . Drone Recoveries 2 | . . . . . . . 2 . . Exploration | -11 -10 -10 -10 -9 -8 -8 -8 -8 -7 ------------- Run | Jun Mat Min Exi Min Mat Gar Mat Gar Fac Turns Passed 9322 | 68 469 137 292 224 608 1265 1059 1384 3816 Spaces Moved 4956 | 56 277 111 251 175 405 860 572 671 1578 Core 1 | 1 . . . . . . . . . Treads 1259 | . . . . . . . . 282 977 Legs . | . . . . . . . . . . Wheels 3696 | 55 277 111 251 175 405 860 572 389 601 Hover . | . . . . . . . . . . Flight . | . . . . . . . . . . Fastest Speed 50 | 50 100 115 115 115 115 115 115 110 125 Average Speed 142 | 99 107 115 115 115 122 126 124 133 184 Slowest Speed 330 | 100 115 115 115 115 130 130 130 160 330 Overloaded Moves . | . . . . . . . . . . Propulsion Burnouts . | . . . . . . . . . . Robots Hopped . | . . . . . . . . . . Cave-ins Triggered . | . . . . . . . . . . Exploration Rate (%) 45 | 3 49 29 68 49 31 83 42 69 27 Regions Visited 9 Branch Regions 3 Pre-discovered Areas 2 | . . . 1 1 . . . . . Known Exits Taken 2 | . . . . . 1 . 1 . . Unknown Exits Taken 5 | 1 1 1 1 1 . . . . . Scrap Searched 2 | . . 1 . 1 . . . . . Spaces Dug 41 | . 1 . . . 1 31 . . 8 Terrain Destroyed 420 | . 1 . . . 18 102 13 115 171 Melee 8 | . 1 . . . 1 6 . . . Projectile 33 | . . . . . . . 13 1 19 AOE 379 | . . . . . 17 96 . 114 152 Terrain Rammed . | . . . . . . . . . . Walls Destroyed . | . . . . . . . . . . Machines Disabled . | . . . . . . . . . . Actions | -11 -10 -10 -10 -9 -8 -8 -8 -8 -7 --------- Run | Jun Mat Min Exi Min Mat Gar Mat Gar Fac Total 6851 | 65 352 118 255 197 467 983 922 1126 2366 Wait 1332 | . 17 2 . 22 18 11 331 314 617 Move 4949 | 55 276 110 250 174 405 859 572 670 1578 Hop . | . . . . . . . . . . Pick Up 68 | 4 6 4 1 1 6 9 7 22 8 Fast Attach 22 | 6 1 1 . . 3 1 1 1 8 Attach 54 | . . . 2 . 1 5 4 13 29 Detach 13 | . . . 2 . . 3 . 3 5 Swap 18 | . 2 . . . 7 4 . 3 2 Drop 48 | . 2 . . . 2 11 7 16 10 Fire 201 | . 42 1 . . 23 26 . 14 95 Melee 33 | . 6 . . . 1 14 . 12 . Ram 3 | . . . . . 1 . . . 2 Kick . | . . . . . . . . . . Crush 14 | . . . . . . . . 2 12 Escape Stasis 96 | . . . . . . 40 . 56 . Rewire . | . . . . . . . . . . Trap . | . . . . . . . . . . Miscellaneous . | . . . . . . . . . . Route ------- -11/Junkyard -10/Materials (discovered 2 exits: [*Mat] / [*Min]) -10/Mines (discovered 2 exits: [*Mat] / *Exi) -10/Exiles -9/Mines -8/Materials -8/Garrison (discovered 3 exits: *Mat x3) -8/Materials -8/Garrison (discovered 3 exits: *Fac x3) -7/Factory (discovered 1 exit: [*Fac]) History --------- Turn | Location | Event 10 | -11/Junkyard | Discovered new exit (range 15) 69 | -11/Junkyard | Entered Materials 184 | -10/Materials | Discovered new exit (range 13) 328 | -10/Materials | Build established: Mutant 530 | -10/Materials | Discovered new exit (range 6) 538 | -10/Materials | Entered Mines 586 | -10/Mines | Discovered new exit (range 8) 605 | -10/Mines | Received a Mining Laser from a helpful Derelict 650 | -10/Mines | Learned Materials security intel 670 | -10/Mines | Deemed a non-threat by the Exiles lab entrance 671 | -10/Mines | Discovered new exit (range 5) 675 | -10/Mines | Entered Exiles 675 | -10/Exiles | Accompanied by 1 ally 704 | -10/Exiles | Met 8R-AWN 723 | -10/Exiles | Met EX-HEX 776 | -10/Exiles | Met EX-DEC 800 | -10/Exiles | Met EX-BIN 816 | -10/Exiles | Aligned with FarCom system 817 | -10/Exiles | Given EX-Vault access code 845 | -10/Exiles | Opened EX-Vault 855 | -10/Exiles | Found AWS/Gauss 881 | -10/Exiles | Warned to stay clear of 0b10 Research branches 896 | -10/Exiles | Exiles lab attacked by MAIN.C 920 | -10/Exiles | Learned location of Zion (-6) 958 | -10/Exiles | Discovered new exit (range 10) 967 | -10/Exiles | Left Exiles lab with AWS/Gauss 967 | -10/Exiles | Entered Mines 1009 | -9/Mines | Assisted by bots powering up and referring to "LRC-V3" 1061 | -9/Mines | Learned 2 Materials zone layouts 1178 | -9/Mines | Discovered new exit (range 9) 1191 | -9/Mines | Entered Materials 1191 | -8/Materials | Accompanied by 3 allies 1191 | -8/Materials | Evolved 4 slots: Utility x4 1505 | -8/Materials | Build established: Hacker-Mutant 1799 | -8/Materials | Identified exit to Garrison 1799 | -8/Materials | Entered Garrison 1872 | -8/Garrison | Triggered checkpoint 1880 | -8/Garrison | Triggered checkpoint 1905 | -8/Garrison | Triggered checkpoint 1915 | -8/Garrison | Lost 3 parts (1p2w) 1928 | -8/Garrison | Destroyed 9 combat bots 1956 | -8/Garrison | Discovered new exit (range 10) 1990 | -8/Garrison | Triggered checkpoint 2082 | -8/Garrison | Triggered checkpoint 2168 | -8/Garrison | Discovered new exit (range 10) 2222 | -8/Garrison | Triggered checkpoint 2333 | -8/Garrison | Triggered checkpoint 2340 | -8/Garrison | Garrison Relay disabled 2369 | -8/Garrison | Discovered new exit (range 13) 2420 | -8/Garrison | Rescued a captive Derelict 2422 | -8/Garrison | Rescued a captive Derelict 2454 | -8/Garrison | Discovered new exit (range 15) 2454 | -8/Garrison | Discovered new exit (range 66) 2454 | -8/Garrison | Discovered new exit (range 65) 2600 | -8/Garrison | Installed Relay Interface Framework 2795 | -8/Garrison | Expanded RIF knowledge: Command Fork 2972 | -8/Garrison | Spotted B-75 Beast 2982 | -8/Garrison | Destroyed B-75 Beast 3064 | -8/Garrison | Entered Materials 4123 | -8/Materials | Identified exit to Garrison 4123 | -8/Materials | Entered Garrison 4184 | -8/Garrison | Triggered checkpoint 4366 | -8/Garrison | Triggered checkpoint 4367 | -8/Garrison | Destroyed 7 combat bots 4400 | -8/Garrison | Triggered checkpoint 4436 | -8/Garrison | Discovered new exit (range 10) 4564 | -8/Garrison | Triggered checkpoint 4890 | -8/Garrison | Expanded RIF knowledge: Patrol Navigation 4976 | -8/Garrison | Triggered checkpoint 5012 | -8/Garrison | Triggered checkpoint 5142 | -8/Garrison | Discovered new exit (range 69) 5142 | -8/Garrison | Discovered new exit (range 12) 5142 | -8/Garrison | Discovered new exit (range 40) 5333 | -8/Garrison | Expanded RIF knowledge: Robot Detection 5507 | -8/Garrison | Entered Factory 5507 | -7/Factory | Evolved 2 slots: Power x1, Utility x1 5802 | -7/Factory | Repaired Adv. Cooling System 6306 | -7/Factory | Lost 4 parts (2p1n1u) 6500 | -7/Factory | Cargo convoy interrupted 6728 | -7/Factory | Fabricated Y-54 Guardian (x2) 6778 | -7/Factory | Fabricated Y-54 Guardian? 6810 | -7/Factory | Core integrity fell below 50% 6844 | -7/Factory | Discovered new exit (range 15) 7026 | -7/Factory | Fabricated Y-54 Guardian (x2) 7051 | -7/Factory | Fabricated Y-54 Guardian? 7133 | -7/Factory | Fabricated Y-54 Guardian? 7286 | -7/Factory | Lost 4 parts (1p1n1u1w) 7385 | -7/Factory | Fabricated P-60 Hacker (x2) 7405 | -7/Factory | Fabricated M-28 Smith (x1) 7428 | -7/Factory | Fabricated Y-54 Guardian (x2) 7451 | -7/Factory | Fabricated Y-54 Guardian (x2) 7474 | -7/Factory | Fabricated Y-54 Guardian (x2) 7497 | -7/Factory | Fabricated P-60 Hacker (x2) 7507 | -7/Factory | First assault squad dispatched 7520 | -7/Factory | Fabricated Y-54 Guardian (x2) 7543 | -7/Factory | Fabricated Y-54 Guardian (x1) 7585 | -7/Factory | Fabricated I-36 Angel (x1) 7621 | -7/Factory | Fabricated Y-54 Guardian (x2) 7653 | -7/Factory | Fabricated O-24 Administrator (x1) 7691 | -7/Factory | Hacker 4a assimilated hostile G-47 Trooper 7695 | -7/Factory | Build established: Commander-Mutant 7901 | -7/Factory | Fabricated Adv. System Restoration Module? 7958 | -7/Factory | Hacker 4a assimilated hostile G-50 Soldier 8770 | -7/Factory | High security lockdown imminent 8774 | -7/Factory | Hacker 4b assimilated hostile G-47 Trooper 8801 | -7/Factory | P-60 Hacker assimilated hostile G-47 Trooper 8850 | -7/Factory | High security lockdown engaged 8934 | -7/Factory | Hacker 4c assimilated hostile G-47 Trooper 8966 | -7/Factory | Destroyed 8 combat bots 9060 | -7/Factory | Destroyed 7 combat bots 9200 | -7/Factory | Sterilization system engaged 9200 | -7/Factory | Non-combat units ordered to evacuate 9234 | -7/Factory | Destroyed 14 combat bots 9300 | -7/Factory | Combat units ordered to evacuate 9301 | -7/Factory | Core integrity fell below 20% 9323 | -7/Factory | Core destroyed Last Messages --------------- 09270_ Carbon-fiber Leg crushed. 09270_ The unstable cave ceiling collapses. 09280_ Slammed into D-53 Grenadier. 09289_ The unstable cave ceiling collapses. 09298_ G-47 Trooper destroyed. 09298_ Hrd. Heavy Armor Plating destroyed. 09300_ ALERT: All combat units evacuate. 09300_ Slammed into D-53 Grenadier. 09302_ D-53 Grenadier destroyed. 09308_ Arm. Treads destroyed. 09310_ Dropped Hcp. Storage Unit. 09313_ The unstable cave ceiling collapses. 09316_ Slammed into D-53 Grenadier. 09317_ Acquired 4 matter. 09317_ The unstable cave ceiling collapses. 09317_ Arm. Treads destroyed. 09317_ Slammed into D-53 Grenadier. 09319_ The unstable cave ceiling collapses. 09320_ Slammed into D-53 Grenadier. 09323_ Destabilizing: Core damaged (-21). Map ----- +----------------------------------------------------+ | ?????????# # ????????????????###????? | | ?????????# ! =# ###############???# #????? | | ?????????# # # #?###+###### | | ???????????"""""" # # #?# | | ???????????"""""" + + % #?# """ """ | | ????????????""""" # # """ """ ### """ """ | | ????????????""""" # # """"" """""%+ +| """ """ | | ???????????? # # """"" """""=### | | ??????????? = # ###############?# = | | ??????############# #################+######## | | ?????# # [%%## "T" ## | | ?????# + %## ## | | ?????# # =## """"""" ## """ | | ?????# # # """"""" ## """ | | ?????# # """"""" ## """ | | ?????############# """"""" ## """ | | ????????###??????# k #! ] ##""" | | ???????? ?????## #=%[ ##"F" """ | | ??????? ?????# #= " ##" """ | | ???????"" ""????# * # ##""" """ | | ??????""" """???# ##""" """ | | ??# """" """" ## % % # | | ??# """" """" # # #### | | ??# """" """" # k = ! = | | ??# """" """" # = % *=%% | | ??# """ ="""" # @ %%/*= | | ??# !%* d !%= [ | | ??# ! ! |%* | | ??# # [%! | | ##########i####!% =% [ ! | | %=*= =%! =% # | | %% %!%=! !=* =% # | | ! % =[ = = % # | | * % # | | % % [ # | | ################ = # # # # ########## | | #??????????# " " # ### ?????? | | #??????????# """"" ## #?????????? | | """ #??????????#### # #?# #?????????? | | """ #?????????????## ###??# #?????????? | | """ #?????????????????????# """ """ #?????????? | | """ #?????????????????????# """ """ #?????????? | | ????#?????????????????????# """ """ #?????????? | | ??????????????????????????# #?????????? | | ??????????????????????????# """ """ #?????????? | | ??????????????????????????# """ """ !!#?????????? | | ?????????????????????????????"" """ !!#?????????? | | ?????????????????????????????? ? #?????????? | | ???????????????????????????????#??#####??????????? | | | +----------------------------------------------------+ Best States ------------- Heat Dissipation 65 Energy Generation 27 Energy Capacity 340 Matter Stores 300 Matter Capacity 300 Sight Range 16 Terrain Scan Density 10 Jamming Range 14 Armor Coverage 600 Resistance: KI 20 Evasion (%) 40 Targeting Accuracy 13 Recoil Reduction 2 Offensive Hacking 30 Defensive Hacking 10 Authchip Count 16 Item Schematics ----------------- Hacking Suite | -8/Materials | Hacked Adv. System Restoration Module | -8/Materials | Scanalyzed Smartbomb Launcher | -8/Materials | Scanalyzed Hvy. Treads | -8/Materials | Scanalyzed Imp. Hacking Suite | -7/Factory | Hacked Robot Schematics ------------------ M-28 Smith | -8/Materials | Hacked O-24 Administrator | -8/Materials | Hacked Y-54 Guardian | -7/Factory | Hacked P-60 Hacker | -7/Factory | Hacked I-36 Angel | -7/Factory | Hacked M-13 Machinist | -7/Factory | Hacked Fabricated ------------ Y-54 Guardian | x2 | -7/Factory | Authchip Y-54 Guardian | x2 | -7/Factory | Authchip Y-54 Guardian | x2 | -7/Factory | Authchip Y-54 Guardian | x2 | -7/Factory | Authchip Y-54 Guardian | x2 | -7/Factory | Authchip P-60 Hacker | x2 | -7/Factory | Authchip M-28 Smith | x1 | -7/Factory | Authchip Y-54 Guardian | x2 | -7/Factory | Authchip Y-54 Guardian | x2 | -7/Factory | Authchip Y-54 Guardian | x2 | -7/Factory | Authchip P-60 Hacker | x2 | -7/Factory | Authchip Y-54 Guardian | x2 | -7/Factory | Authchip Y-54 Guardian | x1 | -7/Factory | Authchip I-36 Angel | x1 | -7/Factory | Authchip Y-54 Guardian | x2 | -7/Factory | Authchip O-24 Administrator | x1 | -7/Factory Adv. System Restoration Module | x2 | -7/Factory Alien Tech Used ----------------- None Achievements -------------- None Challenges ------------ None Game ------ Seed XenonPhysicsInterpreter Manual? 0 Play Time 01:45:51 Cumulative 398.7 hours Start 2023.10.04 @ 17:08:47 End 2023.10.04 @ 18:58:40 Sessions 1 Manual Loads 0 Difficulty Rogue Special Mode None Game No. 248 Rogue 245 Adventurer 3 Explorer 0 Win Type - Total 7 Types 6/0/1/0/0/0/0/0/0 Lore% 69 Gallery% 76 Achievement% 66 Wizard Run 0 Options --------- ASCII 0 Keyboard 0 Movement Numpad Keybinds 0 Fullscreen 1 Font 18/SmallcapsGlow Map View 76x50 Tactical HUD 1 Map Filters NONE Filters NONE Steam 1 RUN: ff3d68be-6566-4d7e-a360-85f6dae23684